[Event "Titled Tuesday Blitz March 01 Early 2022"]
[White "Sargsyan, Anna M."]
[Black "Samadov, Read"]
[WhiteFideId "13308130"]
[BlackFideId "13417444"]
[WhiteElo "2271"]
[BlackElo "2084"]
[Result "0-1"]
[Round "04"]
[TimeControl "180+1"]
[Date "2022.03.01"]
[WhiteClock "0:00:22"]
[BlackClock "0:00:20"]

1. d4 {[%clk 0:02:47]}  Nf6 {[%clk 0:03:00]} 2. c4 {[%clk 0:02:47]}  e6 {[%clk 0:03:00]} 3. Nf3 {[%clk 0:02:47]}  d5 {[%clk 0:03:00]} 4. Nc3 {[%clk 0:02:48]}  Bb4 {[%clk 0:03:00]} 5. Bg5 {[%clk 0:02:48]}  h6 {[%clk 0:02:59]} 6. Bxf6 {[%clk 0:02:48]}  Qxf6 {[%clk 0:03:00]} 7. Qa4+ {[%clk 0:02:48]}  Nc6 {[%clk 0:03:00]} 8. e3 {[%clk 0:02:49]}  O-O {[%clk 0:03:00]} 9. Bd3 {[%clk 0:02:47]}  dxc4 {[%clk 0:02:58]} 10. Bxc4 {[%clk 0:02:48]}  Bd7 {[%clk 0:02:54]} 11. Qc2 {[%clk 0:02:43]}  e5 {[%clk 0:02:47]} 12. O-O {[%clk 0:02:40]}  exd4 {[%clk 0:02:41]} 13. Nd5 {[%clk 0:02:39]}  Qd6 {[%clk 0:02:38]} 14. exd4 {[%clk 0:02:35]}  Be6 {[%clk 0:02:32]} 15. Ne3 {[%clk 0:02:13]}  Bxc4 {[%clk 0:02:23]} 16. Qxc4 {[%clk 0:02:14]}  Ba5 {[%clk 0:02:18]} 17. a3 {[%clk 0:01:56]}  Bb6 {[%clk 0:02:17]} 18. Rad1 {[%clk 0:01:56]}  Rad8 {[%clk 0:02:15]} 19. Rfe1 {[%clk 0:01:55]}  Rfe8 {[%clk 0:02:08]} 20. g3 {[%clk 0:01:38]}  Qf6 {[%clk 0:01:55]} 21. Kg2 {[%clk 0:01:37]}  Nxd4 {[%clk 0:01:41]} 22. Nxd4 {[%clk 0:01:37]}  Rxd4 {[%clk 0:00:42]} 23. Ng4 {[%clk 0:01:34]}  Qc6+ {[%clk 0:00:30]} 24. Qxc6 {[%clk 0:01:32]}  Rxe1 {[%clk 0:00:30]} 25. Rxe1 {[%clk 0:00:27]}  bxc6 {[%clk 0:00:29]} 26. Re8+ {[%clk 0:00:28]}  Kh7 {[%clk 0:00:29]} 27. Ne5 {[%clk 0:00:28]}  Re4 {[%clk 0:00:26]} 28. Kf3 {[%clk 0:00:27]}  Re1 {[%clk 0:00:25]} 29. Re7 {[%clk 0:00:23]}  Bc5 {[%clk 0:00:23]} 30. Rxc7 {[%clk 0:00:22]}  Rxe5 {[%clk 0:00:22]} 31. Rxc6 {[%clk 0:00:23]}  Bb6 {[%clk 0:00:21]} 32. g4 {[%clk 0:00:22]}  Re6 {[%clk 0:00:19]} 33. Rc8 {[%clk 0:00:22]}  Rf6+ {[%clk 0:00:19]} 34. Ke4 {[%clk 0:00:22]}  Rxf2 {[%clk 0:00:20]} 35. h4 {[%clk 0:00:22]}  Rxb2 {[%clk 0:00:20]} 0-1


[Site "https://www.chess.com"]

[Event "Titled Tuesday Blitz March 01 Early 2022"]
[White "Selkirk, Rebecca"]
[Black "Tashkov, Rumen"]
[WhiteFideId "14306514"]
[BlackFideId "2904004"]
[WhiteElo "1649"]
[BlackElo "2181"]
[Result "1-0"]
[Round "04"]
[TimeControl "180+1"]
[Date "2022.03.01"]
[WhiteClock "0:00:08"]
[BlackClock "0:00:01"]

1. e4 {[%clk 0:03:00]}  d6 {[%clk 0:02:59]} 2. d4 {[%clk 0:03:00]}  Nf6 {[%clk 0:03:00]} 3. Nc3 {[%clk 0:02:59]}  g6 {[%clk 0:03:00]} 4. Be3 {[%clk 0:02:59]}  Bg7 {[%clk 0:03:01]} 5. Qd2 {[%clk 0:02:59]}  c6 {[%clk 0:03:01]} 6. O-O-O {[%clk 0:02:58]}  b5 {[%clk 0:02:54]} 7. f3 {[%clk 0:02:57]}  Qa5 {[%clk 0:02:51]} 8. e5 {[%clk 0:02:52]}  Nfd7 {[%clk 0:02:39]} 9. exd6 {[%clk 0:02:37]}  exd6 {[%clk 0:02:38]} 10. Ne4 {[%clk 0:02:34]}  Qxd2+ {[%clk 0:02:35]} 11. Rxd2 {[%clk 0:02:31]}  Ke7 {[%clk 0:02:33]} 12. d5 {[%clk 0:02:25]}  Bb7 {[%clk 0:01:57]} 13. dxc6 {[%clk 0:02:18]}  Bxc6 {[%clk 0:01:58]} 14. Nxd6 {[%clk 0:02:18]}  a6 {[%clk 0:01:47]} 15. Ne2 {[%clk 0:02:04]}  Rd8 {[%clk 0:01:46]} 16. Ne4 {[%clk 0:01:55]}  Bxe4 {[%clk 0:01:41]} 17. fxe4 {[%clk 0:01:56]}  Nc6 {[%clk 0:01:39]} 18. g3 {[%clk 0:01:54]}  Nde5 {[%clk 0:01:34]} 19. Nf4 {[%clk 0:01:34]}  Rxd2 {[%clk 0:01:27]} 20. Bxd2 {[%clk 0:01:35]}  Kf8 {[%clk 0:01:26]} 21. Bg2 {[%clk 0:01:26]}  Nc4 {[%clk 0:01:21]} 22. Rd1 {[%clk 0:01:07]}  Bxb2+ {[%clk 0:01:17]} 23. Kb1 {[%clk 0:01:06]}  Be5 {[%clk 0:01:04]} 24. Nd5 {[%clk 0:00:57]}  Rc8 {[%clk 0:00:56]} 25. Bh3 {[%clk 0:00:50]}  Na3+ {[%clk 0:00:35]} 26. Kc1 {[%clk 0:00:49]}  f5 {[%clk 0:00:35]} 27. exf5 {[%clk 0:00:26]}  Ne7 {[%clk 0:00:34]} 28. Ne3 {[%clk 0:00:15]}  Rc6 {[%clk 0:00:15]} 29. Bb4 {[%clk 0:00:12]}  Nc4 {[%clk 0:00:10]} 30. Nxc4 {[%clk 0:00:12]}  Rxc4 {[%clk 0:00:09]} 31. Rd8+ {[%clk 0:00:11]}  Kf7 {[%clk 0:00:08]} 32. Bxe7 {[%clk 0:00:10]}  Kxe7 {[%clk 0:00:07]} 33. Ra8 {[%clk 0:00:09]}  gxf5 {[%clk 0:00:06]} 34. Bxf5 {[%clk 0:00:09]}  h6 {[%clk 0:00:05]} 35. Bd3 {[%clk 0:00:09]}  Ra4 {[%clk 0:00:04]} 36. Ra7+ {[%clk 0:00:09]}  Kd6 {[%clk 0:00:03]} 37. Rh7 {[%clk 0:00:08]}  Kc5 {[%clk 0:00:02]} 38. Rxh6 {[%clk 0:00:08]}  Kd4 {[%clk 0:00:01]} 39. Kd2 {[%clk 0:00:08]}  Ra3 {[%clk 0:00:01]} 40. Rh4+ {[%clk 0:00:08]} 1-0


[Site "https://www.chess.com"]

[Event "Titled Tuesday Blitz March 01 Early 2022"]
[White "Seo, Jung Min"]
[Black "Demchenko, Anton"]
[WhiteFideId "1734687"]
[BlackFideId "4160258"]
[WhiteElo "2401"]
[BlackElo "2539"]
[Result "1-0"]
[Round "04"]
[TimeControl "180+1"]
[Date "2022.03.01"]
[WhiteClock "0:00:22"]
[BlackClock "0:00:03"]

1. e4 {[%clk 0:03:00]}  e5 {[%clk 0:03:00]} 2. Nf3 {[%clk 0:03:00]}  Nc6 {[%clk 0:03:00]} 3. Bb5 {[%clk 0:03:00]}  a6 {[%clk 0:03:00]} 4. Ba4 {[%clk 0:02:59]}  Nge7 {[%clk 0:02:59]} 5. O-O {[%clk 0:02:59]}  Ng6 {[%clk 0:02:59]} 6. c3 {[%clk 0:02:57]}  d6 {[%clk 0:02:59]} 7. d4 {[%clk 0:02:57]}  Bd7 {[%clk 0:03:00]} 8. Re1 {[%clk 0:02:55]}  Be7 {[%clk 0:03:00]} 9. Be3 {[%clk 0:02:53]}  O-O {[%clk 0:03:00]} 10. Nbd2 {[%clk 0:02:53]}  b5 {[%clk 0:02:57]} 11. Bb3 {[%clk 0:02:48]}  exd4 {[%clk 0:02:57]} 12. cxd4 {[%clk 0:02:47]}  Na5 {[%clk 0:02:58]} 13. Bc2 {[%clk 0:02:46]}  c5 {[%clk 0:02:58]} 14. d5 {[%clk 0:02:38]}  Bf6 {[%clk 0:02:58]} 15. Rb1 {[%clk 0:02:38]}  Nc4 {[%clk 0:02:40]} 16. Nxc4 {[%clk 0:02:38]}  bxc4 {[%clk 0:02:41]} 17. Qe2 {[%clk 0:02:33]}  c3 {[%clk 0:02:36]} 18. bxc3 {[%clk 0:02:12]}  Bxc3 {[%clk 0:02:36]} 19. Rec1 {[%clk 0:02:12]}  Bf6 {[%clk 0:02:16]} 20. Bd3 {[%clk 0:02:10]}  Bg4 {[%clk 0:02:15]} 21. h3 {[%clk 0:02:05]}  Bxf3 {[%clk 0:02:14]} 22. Qxf3 {[%clk 0:02:05]}  Ne5 {[%clk 0:02:14]} 23. Qe2 {[%clk 0:02:06]}  Nxd3 {[%clk 0:02:15]} 24. Qxd3 {[%clk 0:02:06]}  Qa5 {[%clk 0:02:14]} 25. Bf4 {[%clk 0:02:02]}  Rfd8 {[%clk 0:02:12]} 26. Rc2 {[%clk 0:01:57]}  g6 {[%clk 0:01:57]} 27. g3 {[%clk 0:01:57]}  Bd4 {[%clk 0:01:52]} 28. Kg2 {[%clk 0:01:54]}  Rd7 {[%clk 0:01:50]} 29. h4 {[%clk 0:01:53]}  h5 {[%clk 0:01:49]} 30. Bd2 {[%clk 0:01:50]}  Qd8 {[%clk 0:01:29]} 31. Bf4 {[%clk 0:01:50]}  Qe7 {[%clk 0:01:14]} 32. Rc4 {[%clk 0:01:47]}  Be5 {[%clk 0:01:14]} 33. Bg5 {[%clk 0:01:46]}  Qe8 {[%clk 0:01:12]} 34. Ra4 {[%clk 0:01:41]}  Rda7 {[%clk 0:01:06]} 35. Ra3 {[%clk 0:01:40]}  a5 {[%clk 0:01:02]} 36. Qb5 {[%clk 0:01:33]}  Bd4 {[%clk 0:00:30]} 37. Qxe8+ {[%clk 0:01:21]}  Rxe8 {[%clk 0:00:31]} 38. Kf3 {[%clk 0:01:21]}  Ra6 {[%clk 0:00:29]} 39. Ra4 {[%clk 0:01:18]}  Rc8 {[%clk 0:00:28]} 40. Rc4 {[%clk 0:01:16]}  a4 {[%clk 0:00:27]} 41. Rb5 {[%clk 0:01:13]}  Kf8 {[%clk 0:00:26]} 42. Be3 {[%clk 0:01:13]}  Bxe3 {[%clk 0:00:23]} 43. Kxe3 {[%clk 0:01:14]}  Ke7 {[%clk 0:00:23]} 44. f4 {[%clk 0:01:13]}  Kf6 {[%clk 0:00:20]} 45. e5+ {[%clk 0:01:04]}  dxe5 {[%clk 0:00:20]} 46. Rbxc5 {[%clk 0:01:03]}  exf4+ {[%clk 0:00:21]} 47. Kxf4 {[%clk 0:01:02]}  Rxc5 {[%clk 0:00:11]} 48. Rxc5 {[%clk 0:01:03]}  Ke7 {[%clk 0:00:11]} 49. Ke5 {[%clk 0:00:55]}  f6+ {[%clk 0:00:11]} 50. Kd4 {[%clk 0:00:55]}  Rb6 {[%clk 0:00:09]} 51. Ra5 {[%clk 0:00:54]}  Rb4+ {[%clk 0:00:02]} 52. Kc5 {[%clk 0:00:54]}  Rb2 {[%clk 0:00:03]} 53. Ra7+ {[%clk 0:00:50]}  Ke8 {[%clk 0:00:03]} 54. Rxa4 {[%clk 0:00:49]}  g5 {[%clk 0:00:04]} 55. Kc6 {[%clk 0:00:44]}  Rg2 {[%clk 0:00:03]} 56. d6 {[%clk 0:00:36]}  Rc2+ {[%clk 0:00:02]} 57. Kd5 {[%clk 0:00:36]}  Kf7 {[%clk 0:00:02]} 58. Ra7+ {[%clk 0:00:32]}  Kg6 {[%clk 0:00:02]} 59. d7 {[%clk 0:00:32]}  Rd2+ {[%clk 0:00:03]} 60. Ke6 {[%clk 0:00:32]}  Re2+ {[%clk 0:00:02]} 61. Kd6 {[%clk 0:00:32]}  Rd2+ {[%clk 0:00:03]} 62. Kc7 {[%clk 0:00:31]}  Rc2+ {[%clk 0:00:03]} 63. Kb8 {[%clk 0:00:30]}  Rd2 {[%clk 0:00:02]} 64. Kc8 {[%clk 0:00:31]}  Rc2+ {[%clk 0:00:01]} 65. Rc7 {[%clk 0:00:31]}  Rxa2 {[%clk 0:00:02]} 66. d8=Q {[%clk 0:00:27]}  Ra8+ {[%clk 0:00:02]} 67. Kd7 {[%clk 0:00:27]}  Rxd8+ {[%clk 0:00:03]} 68. Kxd8 {[%clk 0:00:28]}  Kf5 {[%clk 0:00:04]} 69. Rc4 {[%clk 0:00:25]}  Ke5 {[%clk 0:00:03]} 70. Ke7 {[%clk 0:00:24]}  gxh4 {[%clk 0:00:02]} 71. Rxh4 {[%clk 0:00:24]}  Kf5 {[%clk 0:00:02]} 72. Kf7 {[%clk 0:00:23]}  Kg5 {[%clk 0:00:02]} 73. Ke6 {[%clk 0:00:22]}  f5 {[%clk 0:00:03]} 74. Ke5 {[%clk 0:00:22]} 1-0


[Site "https://www.chess.com"]

[Event "Titled Tuesday Blitz March 01 Early 2022"]
[White "Shuvalova, Polina"]
[Black "Izoria, Zviad"]
[WhiteFideId "24171760"]
[BlackFideId "13601733"]
[WhiteElo "2355"]
[BlackElo "2626"]
[Result "0-1"]
[Round "04"]
[TimeControl "180+1"]
[Date "2022.03.01"]
[WhiteClock "0:00:24"]
[BlackClock "0:01:37"]

1. d4 {[%clk 0:03:00]}  d6 {[%clk 0:02:59]} 2. c4 {[%clk 0:02:55]}  e5 {[%clk 0:02:58]} 3. Nc3 {[%clk 0:02:15]}  exd4 {[%clk 0:02:58]} 4. Qxd4 {[%clk 0:02:16]}  Nc6 {[%clk 0:02:58]} 5. Qe3+ {[%clk 0:02:15]}  Be6 {[%clk 0:02:54]} 6. g3 {[%clk 0:02:13]}  Nf6 {[%clk 0:02:49]} 7. Bg2 {[%clk 0:02:10]}  Be7 {[%clk 0:02:49]} 8. b3 {[%clk 0:02:09]}  d5 {[%clk 0:02:49]} 9. cxd5 {[%clk 0:02:01]}  Nxd5 {[%clk 0:02:49]} 10. Nxd5 {[%clk 0:02:01]}  Bxd5 {[%clk 0:02:50]} 11. Nf3 {[%clk 0:01:59]}  O-O {[%clk 0:02:47]} 12. O-O {[%clk 0:01:56]}  Bf6 {[%clk 0:02:47]} 13. Rb1 {[%clk 0:01:44]}  Re8 {[%clk 0:02:47]} 14. Qd2 {[%clk 0:01:34]}  Be4 {[%clk 0:02:46]} 15. Rb2 {[%clk 0:01:27]}  Bxb2 {[%clk 0:02:45]} 16. Qxb2 {[%clk 0:01:28]}  Qd5 {[%clk 0:02:40]} 17. Bf4 {[%clk 0:01:25]}  Re7 {[%clk 0:02:37]} 18. Rc1 {[%clk 0:01:08]}  Rd8 {[%clk 0:02:35]} 19. h4 {[%clk 0:01:08]}  h6 {[%clk 0:02:34]} 20. b4 {[%clk 0:01:05]}  a6 {[%clk 0:02:31]} 21. a4 {[%clk 0:01:03]}  Nd4 {[%clk 0:02:04]} 22. Nxd4 {[%clk 0:00:55]}  Bxg2 {[%clk 0:01:55]} 23. Be3 {[%clk 0:00:37]}  Bh1 {[%clk 0:01:42]} 24. Nf3 {[%clk 0:00:36]}  Bxf3 {[%clk 0:01:41]} 25. exf3 {[%clk 0:00:37]}  Qxf3 {[%clk 0:01:40]} 26. Qb3 {[%clk 0:00:33]}  Red7 {[%clk 0:01:39]} 27. Kh2 {[%clk 0:00:24]}  Rd1 {[%clk 0:01:37]} 0-1


[Site "https://www.chess.com"]

[Event "Titled Tuesday Blitz March 01 Early 2022"]
[White "Shvedova, Alexandra"]
[Black "Goltsev, Dmitry"]
[WhiteFideId "54154782"]
[BlackFideId "24176710"]
[WhiteElo "1920"]
[BlackElo "2273"]
[Result "0-1"]
[Round "04"]
[TimeControl "180+1"]
[Date "2022.03.01"]
[WhiteClock "0:00:38"]
[BlackClock "0:01:40"]

1. e4 {[%clk 0:03:00]}  e6 {[%clk 0:03:00]} 2. d4 {[%clk 0:03:01]}  d5 {[%clk 0:02:59]} 3. Nd2 {[%clk 0:03:01]}  c5 {[%clk 0:02:59]} 4. exd5 {[%clk 0:03:01]}  exd5 {[%clk 0:02:59]} 5. Ngf3 {[%clk 0:03:01]}  Nf6 {[%clk 0:02:58]} 6. Bb5+ {[%clk 0:03:00]}  Nc6 {[%clk 0:02:58]} 7. O-O {[%clk 0:02:58]}  Be7 {[%clk 0:02:57]} 8. dxc5 {[%clk 0:02:56]}  Bxc5 {[%clk 0:02:56]} 9. Nb3 {[%clk 0:02:56]}  Bb6 {[%clk 0:02:53]} 10. Nbd4 {[%clk 0:02:55]}  O-O {[%clk 0:02:44]} 11. Nxc6 {[%clk 0:02:50]}  bxc6 {[%clk 0:02:40]} 12. Bxc6 {[%clk 0:02:51]}  Rb8 {[%clk 0:02:38]} 13. Bg5 {[%clk 0:02:30]}  Qd6 {[%clk 0:02:35]} 14. Bxf6 {[%clk 0:02:27]}  Qxc6 {[%clk 0:02:33]} 15. Bd4 {[%clk 0:02:23]}  Bc7 {[%clk 0:02:32]} 16. Re1 {[%clk 0:02:13]}  Bf5 {[%clk 0:02:30]} 17. Bc3 {[%clk 0:02:08]}  Be4 {[%clk 0:02:25]} 18. Qd4 {[%clk 0:01:55]}  Qh6 {[%clk 0:02:19]} 19. Ne5 {[%clk 0:01:31]}  Qg5 {[%clk 0:02:07]} 20. f3 {[%clk 0:01:09]}  Bb6 {[%clk 0:02:06]} 21. fxe4 {[%clk 0:01:05]}  Bxd4+ {[%clk 0:01:59]} 22. Bxd4 {[%clk 0:01:06]}  dxe4 {[%clk 0:01:55]} 23. Nd7 {[%clk 0:01:01]}  Qd5 {[%clk 0:01:54]} 24. Rad1 {[%clk 0:00:53]}  Qxd7 {[%clk 0:01:52]} 25. Bc5 {[%clk 0:00:53]}  Qc6 {[%clk 0:01:48]} 26. Bxf8 {[%clk 0:00:53]}  Kxf8 {[%clk 0:01:49]} 27. c3 {[%clk 0:00:47]}  Rxb2 {[%clk 0:01:47]} 28. Rd8+ {[%clk 0:00:43]}  Ke7 {[%clk 0:01:47]} 29. Rd4 {[%clk 0:00:43]}  f5 {[%clk 0:01:45]} 30. g4 {[%clk 0:00:43]}  Qxc3 {[%clk 0:01:44]} 31. Red1 {[%clk 0:00:38]}  Qe3+ {[%clk 0:01:40]} 0-1


[Site "https://www.chess.com"]

[Event "Titled Tuesday Blitz March 01 Early 2022"]
[White "Siva Mahadevan"]
[Black "Zavgorodniy, Sergiy"]
[WhiteFideId "25043153"]
[BlackFideId "14110148"]
[WhiteElo "2203"]
[BlackElo "2420"]
[Result "1/2-1/2"]
[Round "04"]
[TimeControl "180+1"]
[Date "2022.03.01"]
[WhiteClock "0:00:25"]
[BlackClock "0:00:16"]

1. e4 {[%clk 0:02:59]}  e5 {[%clk 0:03:00]} 2. Nf3 {[%clk 0:02:59]}  d6 {[%clk 0:03:00]} 3. d4 {[%clk 0:02:59]}  exd4 {[%clk 0:03:00]} 4. Nxd4 {[%clk 0:03:00]}  Nf6 {[%clk 0:03:00]} 5. Nc3 {[%clk 0:03:01]}  Be7 {[%clk 0:03:00]} 6. g3 {[%clk 0:03:01]}  Bg4 {[%clk 0:02:58]} 7. f3 {[%clk 0:02:56]}  Bd7 {[%clk 0:02:58]} 8. Bg2 {[%clk 0:02:56]}  c5 {[%clk 0:02:58]} 9. Nde2 {[%clk 0:02:54]}  Bc6 {[%clk 0:02:58]} 10. f4 {[%clk 0:02:32]}  O-O {[%clk 0:02:55]} 11. O-O {[%clk 0:02:32]}  Nbd7 {[%clk 0:02:37]} 12. b3 {[%clk 0:02:23]}  Qc7 {[%clk 0:02:35]} 13. Bb2 {[%clk 0:02:19]}  b5 {[%clk 0:02:35]} 14. a4 {[%clk 0:02:16]}  b4 {[%clk 0:02:34]} 15. Nd5 {[%clk 0:02:15]}  Bxd5 {[%clk 0:02:33]} 16. exd5 {[%clk 0:02:16]}  Ng4 {[%clk 0:02:31]} 17. Qd3 {[%clk 0:02:08]}  Rfe8 {[%clk 0:02:11]} 18. Rae1 {[%clk 0:01:47]}  Bf6 {[%clk 0:02:00]} 19. Bc1 {[%clk 0:01:46]}  c4 {[%clk 0:01:48]} 20. Qf3 {[%clk 0:01:35]}  Qc5+ {[%clk 0:01:42]} 21. Kh1 {[%clk 0:01:33]}  Ne3 {[%clk 0:01:42]} 22. Bh3 {[%clk 0:01:28]}  Nb6 {[%clk 0:01:27]} 23. Bxe3 {[%clk 0:01:04]}  Rxe3 {[%clk 0:01:26]} 24. Qf2 {[%clk 0:01:05]}  Rae8 {[%clk 0:01:24]} 25. bxc4 {[%clk 0:01:04]}  Nxc4 {[%clk 0:01:18]} 26. Nc1 {[%clk 0:00:44]}  Bc3 {[%clk 0:00:57]} 27. Rd1 {[%clk 0:00:33]}  h6 {[%clk 0:00:46]} 28. Nb3 {[%clk 0:00:32]}  Qc7 {[%clk 0:00:37]} 29. Bg4 {[%clk 0:00:26]}  Nb2 {[%clk 0:00:27]} 30. Ra1 {[%clk 0:00:24]}  Qc4 {[%clk 0:00:24]} 31. Qg2 {[%clk 0:00:24]}  R3e4 {[%clk 0:00:17]} 32. Bf3 {[%clk 0:00:24]}  Re3 {[%clk 0:00:17]} 33. Na5 {[%clk 0:00:24]}  Qc5 {[%clk 0:00:16]} 34. Nb3 {[%clk 0:00:24]}  Qc4 {[%clk 0:00:15]} 35. Na5 {[%clk 0:00:24]}  Qc5 {[%clk 0:00:15]} 36. Nb3 {[%clk 0:00:25]}  Qc4 {[%clk 0:00:16]} 1/2-1/2


[Site "https://www.chess.com"]

[Event "Titled Tuesday Blitz March 01 Early 2022"]
[White "Sjugirov, Sanan"]
[Black "Li, Ben"]
[WhiteFideId "4189302"]
[BlackFideId "2089980"]
[WhiteElo "2602"]
[BlackElo "2267"]
[Result "0-1"]
[Round "04"]
[TimeControl "180+1"]
[Date "2022.03.01"]
[WhiteClock "0:00:05"]
[BlackClock "0:00:04"]

1. e4 {[%clk 0:03:00]}  e5 {[%clk 0:02:59]} 2. Nf3 {[%clk 0:03:00]}  Nc6 {[%clk 0:02:59]} 3. Bb5 {[%clk 0:03:01]}  a6 {[%clk 0:03:00]} 4. Ba4 {[%clk 0:03:02]}  Nf6 {[%clk 0:03:00]} 5. O-O {[%clk 0:03:02]}  Be7 {[%clk 0:03:00]} 6. d3 {[%clk 0:03:02]}  b5 {[%clk 0:02:59]} 7. Bb3 {[%clk 0:03:02]}  d6 {[%clk 0:03:00]} 8. a4 {[%clk 0:03:03]}  Bd7 {[%clk 0:03:00]} 9. c3 {[%clk 0:03:02]}  O-O {[%clk 0:02:59]} 10. Bc2 {[%clk 0:03:02]}  Re8 {[%clk 0:02:51]} 11. Re1 {[%clk 0:03:01]}  Bf8 {[%clk 0:02:50]} 12. Nbd2 {[%clk 0:03:01]}  g6 {[%clk 0:02:50]} 13. Nf1 {[%clk 0:03:01]}  Bg7 {[%clk 0:02:50]} 14. Ng3 {[%clk 0:03:01]}  Qb8 {[%clk 0:02:35]} 15. h3 {[%clk 0:03:01]}  Na5 {[%clk 0:02:20]} 16. b4 {[%clk 0:02:48]}  Nc6 {[%clk 0:02:20]} 17. Bg5 {[%clk 0:02:41]}  h6 {[%clk 0:02:18]} 18. Be3 {[%clk 0:02:41]}  d5 {[%clk 0:02:02]} 19. Qd2 {[%clk 0:02:33]}  Kh7 {[%clk 0:02:02]} 20. Bc5 {[%clk 0:02:26]}  Be6 {[%clk 0:01:55]} 21. Qe3 {[%clk 0:01:46]}  Qb7 {[%clk 0:01:26]} 22. Qe2 {[%clk 0:01:39]}  Rad8 {[%clk 0:01:24]} 23. axb5 {[%clk 0:01:38]}  axb5 {[%clk 0:01:23]} 24. Nh2 {[%clk 0:01:22]}  dxe4 {[%clk 0:01:09]} 25. dxe4 {[%clk 0:01:22]}  Bc4 {[%clk 0:01:08]} 26. Qf3 {[%clk 0:01:15]}  Ra8 {[%clk 0:01:05]} 27. Bd3 {[%clk 0:01:05]}  Be6 {[%clk 0:00:56]} 28. Ng4 {[%clk 0:01:02]}  Nd7 {[%clk 0:00:46]} 29. Be3 {[%clk 0:01:02]}  Ne7 {[%clk 0:00:40]} 30. Qe2 {[%clk 0:00:58]}  c6 {[%clk 0:00:38]} 31. Nh2 {[%clk 0:00:57]}  Rxa1 {[%clk 0:00:36]} 32. Rxa1 {[%clk 0:00:57]}  Ra8 {[%clk 0:00:36]} 33. Qd1 {[%clk 0:00:45]}  Rxa1 {[%clk 0:00:35]} 34. Qxa1 {[%clk 0:00:45]}  Nb6 {[%clk 0:00:35]} 35. Nf3 {[%clk 0:00:40]}  Nc4 {[%clk 0:00:33]} 36. Bc5 {[%clk 0:00:38]}  Qd7 {[%clk 0:00:31]} 37. Be2 {[%clk 0:00:35]}  Nc8 {[%clk 0:00:23]} 38. Nf1 {[%clk 0:00:34]}  N8d6 {[%clk 0:00:23]} 39. Qd1 {[%clk 0:00:33]}  Qc7 {[%clk 0:00:22]} 40. Ne3 {[%clk 0:00:30]}  Nxe4 {[%clk 0:00:19]} 41. Bxc4 {[%clk 0:00:22]}  Nxc5 {[%clk 0:00:19]} 42. bxc5 {[%clk 0:00:20]}  bxc4 {[%clk 0:00:18]} 43. Qa4 {[%clk 0:00:16]}  Qd7 {[%clk 0:00:17]} 44. Nxc4 {[%clk 0:00:14]}  Qd5 {[%clk 0:00:16]} 45. Ne3 {[%clk 0:00:11]}  Qxc5 {[%clk 0:00:16]} 46. c4 {[%clk 0:00:10]}  e4 {[%clk 0:00:15]} 47. Nd2 {[%clk 0:00:11]}  f5 {[%clk 0:00:15]} 48. g3 {[%clk 0:00:10]}  h5 {[%clk 0:00:14]} 49. h4 {[%clk 0:00:10]}  Bd4 {[%clk 0:00:14]} 50. Ndf1 {[%clk 0:00:11]}  Qb6 {[%clk 0:00:13]} 51. Qa8 {[%clk 0:00:09]}  c5 {[%clk 0:00:12]} 52. Qe8 {[%clk 0:00:09]}  Kg7 {[%clk 0:00:10]} 53. Qe7+ {[%clk 0:00:09]}  Bf7 {[%clk 0:00:10]} 54. Qg5 {[%clk 0:00:06]}  Qf6 {[%clk 0:00:10]} 55. Qxf6+ {[%clk 0:00:05]}  Kxf6 {[%clk 0:00:11]} 56. Nd2 {[%clk 0:00:04]}  Ke5 {[%clk 0:00:11]} 57. Ng2 {[%clk 0:00:04]}  Bc3 {[%clk 0:00:10]} 58. Nb3 {[%clk 0:00:04]}  Bb4 {[%clk 0:00:10]} 59. Ne3 {[%clk 0:00:04]}  f4 {[%clk 0:00:09]} 60. gxf4+ {[%clk 0:00:04]}  Kxf4 {[%clk 0:00:10]} 61. Kg2 {[%clk 0:00:05]}  g5 {[%clk 0:00:08]} 62. hxg5 {[%clk 0:00:05]}  Kxg5 {[%clk 0:00:09]} 63. Nc1 {[%clk 0:00:05]}  Kf4 {[%clk 0:00:09]} 64. Ne2+ {[%clk 0:00:06]}  Ke5 {[%clk 0:00:09]} 65. Ng3 {[%clk 0:00:06]}  Bd2 {[%clk 0:00:09]} 66. Ngf1 {[%clk 0:00:05]}  Bc1 {[%clk 0:00:09]} 67. Kh3 {[%clk 0:00:05]}  Kd4 {[%clk 0:00:10]} 68. Nf5+ {[%clk 0:00:05]}  Ke5 {[%clk 0:00:10]} 69. N5e3 {[%clk 0:00:05]}  Be6+ {[%clk 0:00:07]} 70. Kh4 {[%clk 0:00:06]}  Kd4 {[%clk 0:00:08]} 71. Kxh5 {[%clk 0:00:05]}  Bxc4 {[%clk 0:00:08]} 72. Ng3 {[%clk 0:00:04]}  Bxe3 {[%clk 0:00:08]} 73. Nf5+ {[%clk 0:00:04]}  Ke5 {[%clk 0:00:07]} 74. Nxe3 {[%clk 0:00:05]}  Be6 {[%clk 0:00:07]} 75. Kh4 {[%clk 0:00:04]}  c4 {[%clk 0:00:07]} 76. Kg3 {[%clk 0:00:03]}  Bd5 {[%clk 0:00:06]} 77. Nd1 {[%clk 0:00:03]}  Kd4 {[%clk 0:00:06]} 78. Kf4 {[%clk 0:00:03]}  c3 {[%clk 0:00:06]} 79. Ne3 {[%clk 0:00:04]}  Bc6 {[%clk 0:00:04]} 80. Nc2+ {[%clk 0:00:04]}  Kd3 {[%clk 0:00:02]} 81. Nb4+ {[%clk 0:00:04]}  Kc4 {[%clk 0:00:01]} 82. Nc2 {[%clk 0:00:03]}  Ba8 {[%clk 0:00:01]} 83. Ke3 {[%clk 0:00:03]}  Kb3 {[%clk 0:00:01]} 84. Nd4+ {[%clk 0:00:04]}  Kb2 {[%clk 0:00:02]} 85. Ke2 {[%clk 0:00:04]}  c2 {[%clk 0:00:02]} 86. Nxc2 {[%clk 0:00:04]}  Kxc2 {[%clk 0:00:03]} 87. Ke3 {[%clk 0:00:05]}  Kc3 {[%clk 0:00:04]} 0-1


[Site "https://www.chess.com"]